fUSD/lending_fUSD_20260617
["ID","MTS","AMOUNT","RATE_DAILY","PERIOD"]
[425306179,1781685039000,-150.0,0.00018,2]
[425306193,1781685039000,-166.66,0.00018102,2]
[425306175,1781685039000,-205.63,0.00017299,2]
[425306177,1781685039000,-538.0,0.00018,2]
[425306181,1781685039000,-151.0,0.00018,2]
[425306220,1781685039000,-6825.2011,0.00019299,2]
[425306180,1781685039000,-314.0,0.00018,2]
[425306176,1781685039000,-166.66,0.00017541,2]
[425306183,1781685039000,-316.0,0.00018,2]
[425306182,1781685039000,-316.0,0.00018,2]
[425306192,1781685039000,-151.0,0.00018066,2]
[425306191,1781685039000,-732.36,0.00018066,2]
[425306184,1781685039000,-319.0,0.00018001,2]
[425306190,1781685039000,-654.86,0.00018066,2]
[425306169,1781685039000,-166.66,0.00016981,2]
[425306189,1781685039000,-500.0,0.00018066,2]
[425306188,1781685039000,-500.0,0.00018066,2]
[425306187,1781685039000,-500.0,0.00018066,2]
[425306185,1781685039000,-150.0,0.00018007,2]
[425306186,1781685039000,-152.0,0.00018026,2]
[425306228,1781685040000,-225.532622,0.00019502,2]
[425306227,1781685040000,-732.36,0.00019399,2]
[425306232,1781685040000,-514.46740334,0.000198,2]
[425306229,1781685040000,-166.66,0.00019783,2]
[425306230,1781685040000,-5000.0,0.000198,2]
[425306226,1781685040000,-654.86,0.00019399,2]
[425306222,1781685040000,-1613.0535,0.0001938,2]
[425306234,1781685040000,-199.5,0.00019812,2]
[425306225,1781685040000,-581.38764277,0.00019399,2]
[425306224,1781685040000,-500.0,0.00019399,2]
[425306223,1781685040000,-500.0,0.00019399,2]
[425306231,1781685040000,-12.8786022,0.000198,2]
[425306221,1781685040000,-177.731937,0.0001936,2]
[425306233,1781685040000,-2664.19403566,0.000198,2]
[425306235,1781685040000,-10053.82899332,0.00019853,2]
[425306236,1781685040000,-538.0,0.00019879,3]
[425306248,1781685040000,-1222.84,0.000199,2]
[425306247,1781685040000,-14638.77182063,0.000199,2]
[425306246,1781685040000,-16053.466734,0.000199,2]
[425306243,1781685040000,-2405.09424,0.000199,2]
[425306245,1781685040000,-2662.35,0.000199,2]
[425306242,1781685040000,-820.39285962,0.000199,2]
[425306241,1781685040000,-16956.98457673,0.000199,2]
[425306239,1781685040000,-500.0,0.00019899,2]
[425306240,1781685040000,-500.0,0.00019899,2]
[425306238,1781685040000,-500.0,0.00019899,2]
[425306237,1781685040000,-505.03492556,0.00019899,2]
[425306244,1781685040000,-2548.39844245,0.000199,2]
[425306257,1781685041000,-5091.90804701,0.000199,2]
[425306253,1781685041000,-557.4163513,0.00015139,2]
[425306254,1781685041000,-500.0,0.00015139,2]
[425306259,1781685041000,-903.11353992,0.000199,2]
[425306260,1781685041000,-1229.82,0.000199,2]
[425306255,1781685041000,-6910.07313552,0.000199,2]
[425306256,1781685041000,-6589.62577999,0.000199,2]
[425306258,1781685041000,-349.04451931,0.000199,2]
[425306261,1781685041000,-921.9488209,0.000199,2]
[425306262,1781685041000,-1317.29305971,0.000199,2]
[425306265,1781685041000,-815.79999999,0.000199,2]
[425306264,1781685041000,-1883.66299103,0.000199,2]
[425306263,1781685041000,-381.66035026,0.000199,2]
[425306284,1781685042000,-154.0,0.0002,2]
[425306301,1781685042000,-150.99,0.00020145,2]
[425306288,1781685042000,-173.0,0.0002,2]
[425306286,1781685042000,-769.0,0.0002,2]
[425306290,1781685042000,-168.0,0.0002,2]
[425306285,1781685042000,-791.0,0.0002,2]
[425306289,1781685042000,-160.0,0.0002,2]
[425306287,1781685042000,-190.0,0.0002,2]
[425306294,1781685042000,-152.0,0.0002,2]
[425306295,1781685042000,-616.0,0.0002,2]
[425306298,1781685042000,-4225.0,0.0002,2]
[425306302,1781685042000,-7230.85,0.00020145,2]
[425306304,1781685042000,-9999.99,0.00020145,2]
[425306299,1781685042000,-205.63,0.0002003,2]
[425306300,1781685042000,-2136.94,0.00020145,2]
[425306303,1781685042000,-9999.99,0.00020145,2]
[425306296,1781685042000,-157.0,0.0002,2]
[425306293,1781685042000,-502.0,0.0002,2]
[425306279,1781685042000,-180.619559,0.00019958,2]
[425306291,1781685042000,-179.277389,0.0002,2]
[425306267,1781685042000,-827.55841702,0.000199,2]
[425306268,1781685042000,-1124.99434573,0.000199,2]
[425306266,1781685042000,-1263.51406859,0.000199,2]
[425306269,1781685042000,-127029.39335159,0.000199,2]
[425306272,1781685042000,-500.0,0.00019902,2]
[425306276,1781685042000,-1672.7364795,0.00019928,2]
[425306271,1781685042000,-500.0,0.00019902,2]
[425306282,1781685042000,-162.0,0.0002,2]
[425306280,1781685042000,-654.86,0.00019999,2]
[425306273,1781685042000,-500.0,0.00019902,2]
[425306275,1781685042000,-385.49012912,0.00019902,2]
[425306281,1781685042000,-732.36,0.00019999,2]
[425306278,1781685042000,-510.66604001,0.00019953,2]
[425306277,1781685042000,-488.16,0.0001995,2]
[425306283,1781685042000,-165.0,0.0002,2]
[425306292,1781685042000,-206.0,0.0002,2]
[425306270,1781685042000,-500.0,0.00019902,2]
[425306297,1781685042000,-3368.06,0.0002,2]
[425306327,1781685042000,-151.0,0.00020951,2]
[425306317,1781685042000,-1492.91,0.00020513,2]
[425306328,1781685042000,-151.0,0.00020951,2]
[425306330,1781685042000,-165.0,0.00021,2]
[425306332,1781685042000,-791.0,0.00021,2]
[425306329,1781685042000,-162.0,0.00021,2]
[425306331,1781685042000,-154.0,0.00021,2]
[425306340,1781685042000,-152.0,0.00021,2]
[425306333,1781685042000,-769.0,0.00021,2]
[425306325,1781685042000,-500.0,0.0002095,2]
[425306338,1781685042000,-206.0,0.00021,2]
[425306337,1781685042000,-179.277389,0.00021,2]
[425306335,1781685042000,-173.0,0.00021,2]
[425306339,1781685042000,-502.0,0.00021,2]
[425306341,1781685042000,-616.0,0.00021,2]
[425306343,1781685042000,-150.0,0.00021,2]
[425306342,1781685042000,-2662.229796,0.00021,2]
[425306306,1781685042000,-2887.32,0.00020145,2]
[425306334,1781685042000,-190.0,0.00021,2]
[425306323,1781685042000,-205.63,0.00020941,2]
[425306336,1781685042000,-168.0,0.00021,2]
[425306321,1781685042000,-10053.82899325,0.00020771,2]
[425306326,1781685042000,-500.0,0.0002095,2]
[425306305,1781685042000,-204368.41,0.00020145,2]
[425306307,1781685042000,-1865.98,0.00020145,2]
[425306315,1781685042000,-1734.62772924,0.00020476,2]
[425306308,1781685042000,-9999.99,0.00020145,2]
[425306309,1781685042000,-9999.99,0.00020145,2]
[425306313,1781685042000,-1981.95906149,0.00020203,2]
[425306314,1781685042000,-254.4,0.00020381,2]
[425306316,1781685042000,-538.0,0.00020505,4]
[425306310,1781685042000,-3754.92,0.00020145,2]
[425306312,1781685042000,-999.99,0.00020145,2]
[425306319,1781685042000,-1696.77,0.0002072,2]
[425306318,1781685042000,-197.3494,0.00020682,2]
[425306320,1781685042000,-213.30289022,0.00020757,7]
[425306322,1781685042000,-800.0,0.000209,7]
[425306311,1781685042000,-84591.73,0.00020145,2]
[425306324,1781685042000,-300.0,0.0002095,2]
[425306381,1781685043000,-1600.0,0.000219,7]
[425306383,1781685043000,-5000.0,0.00021918,2]
[425306380,1781685043000,-152.0,0.00021894,7]
[425306379,1781685043000,-205.63,0.00021851,2]
[425306375,1781685043000,-3584.89594489,0.000218,2]
[425306378,1781685043000,-1873.20991633,0.000218,2]
[425306388,1781685043000,-3584.89594489,0.00022,2]
[425306371,1781685043000,-10053.82899325,0.00021688,2]
[425306373,1781685043000,-538.0,0.00021758,5]
[425306372,1781685043000,-654.86,0.00021756,2]
[425306389,1781685043000,-231.60762347,0.00022,2]
[425306382,1781685043000,-390.0,0.000219,7]
[425306386,1781685043000,-206.0,0.00021976,2]
[425306384,1781685043000,-150.0,0.00021918,2]
[425306385,1781685043000,-500.0,0.00021954,2]
[425306390,1781685043000,-1873.20991633,0.00022,2]
[425306395,1781685043000,-769.0,0.00022,2]
[425306392,1781685043000,-165.0,0.00022,2]
[425306391,1781685043000,-162.0,0.00022,2]
[425306396,1781685043000,-190.0,0.00022,2]
[425306394,1781685043000,-791.0,0.00022,2]
[425306398,1781685043000,-168.0,0.00022,2]
[425306400,1781685043000,-206.0,0.00022,2]
[425306369,1781685043000,-1873.20991633,0.000216,2]
[425306387,1781685043000,-190.97470805,0.00022,2]
[425306370,1781685043000,-3368.06,0.0002163,2]
[425306353,1781685043000,-202.17172814,0.000213,2]
[425306377,1781685043000,-195.18782235,0.000218,2]
[425306345,1781685043000,-1981.95906149,0.00021126,2]
[425306348,1781685043000,-615.77,0.00021273,2]
[425306347,1781685043000,-3191.54004114,0.00021229,2]
[425306344,1781685043000,-1798.80895522,0.00021024,2]
[425306350,1781685043000,-3584.89594489,0.000213,2]
[425306346,1781685043000,-538.0,0.00021131,4]
[425306351,1781685043000,-231.60762347,0.000213,2]
[425306349,1781685043000,-190.97470805,0.000213,2]
[425306352,1781685043000,-195.18782235,0.000213,2]
[425306397,1781685043000,-173.0,0.00022,2]
[425306354,1781685043000,-1873.20991633,0.000213,2]
[425306364,1781685043000,-190.97470805,0.000216,2]
[425306359,1781685043000,-500.0,0.00021527,2]
[425306355,1781685043000,-160.0,0.00021337,2]
[425306356,1781685043000,-216.17170803,0.00021337,2]
[425306358,1781685043000,-424.6590534,0.000215,2]
[425306357,1781685043000,-3529.60598576,0.00021472,2]
[425306361,1781685043000,-329700.6004,0.00021528,2]
[425306363,1781685043000,-1865.36488656,0.00021572,2]
[425306362,1781685043000,-159.581059,0.00021528,2]
[425306360,1781685043000,-500.0,0.00021527,2]
[425306368,1781685043000,-195.18782235,0.000216,2]
[425306366,1781685043000,-3584.89594489,0.000216,2]
[425306367,1781685043000,-231.60762347,0.000216,2]
[425306376,1781685043000,-231.60762347,0.000218,2]
[425306374,1781685043000,-190.97470805,0.000218,2]
[425306399,1781685043000,-179.277389,0.00022,2]
[425306393,1781685043000,-154.0,0.00022,2]
[425306404,1781685043000,-400.33,0.00022,2]
[425306430,1781685043000,-151.0,0.0002212,2]
[425306434,1781685043000,-1377.42282658,0.0002212,2]
[425306437,1781685043000,-500.0,0.0002212,2]
[425306438,1781685043000,-151.0,0.0002212,2]
[425306436,1781685043000,-152.0,0.0002212,2]
[425306440,1781685043000,-194.72792766,0.0002212,2]
[425306439,1781685043000,-1934.38338736,0.0002212,2]
[425306435,1781685043000,-287.24328384,0.0002212,2]
[425306441,1781685043000,-1428.38747117,0.0002212,2]
[425306442,1781685043000,-500.0,0.0002212,2]
[425306443,1781685043000,-151.0,0.0002212,2]
[425306444,1781685043000,-152.0,0.0002212,2]
[425306446,1781685043000,-1481.2378076,0.0002212,2]
[425306445,1781685043000,-151.0,0.0002212,2]
[425306448,1781685043000,-670.58624095,0.0002212,2]
[425306449,1781685043000,-500.0,0.0002212,2]
[425306454,1781685043000,-151.0,0.0002212,2]
[425306452,1781685043000,-1536.04360648,0.0002212,2]
[425306455,1781685043000,-500.0,0.0002212,2]
[425306453,1781685043000,-500.0,0.0002212,2]
[425306447,1781685043000,-151.0,0.0002212,2]
[425306450,1781685043000,-151.0,0.0002212,2]
[425306402,1781685043000,-158.0,0.00022,2]
[425306456,1781685043000,-152.0,0.0002212,2]
[425306457,1781685043000,-151.0,0.0002212,2]
[425306425,1781685043000,-1235.18214925,0.0002212,2]
[425306428,1781685043000,-1280.88388877,0.0002212,2]
[425306451,1781685043000,-194.72792766,0.0002212,2]
[425306427,1781685043000,-151.0,0.0002212,2]
[425306429,1781685043000,-500.0,0.0002212,2]
[425306401,1781685043000,-502.0,0.00022,2]
[425306403,1781685043000,-616.0,0.00022,2]
[425306406,1781685043000,-4953.4384,0.00022021,2]
[425306410,1781685043000,-194.72792766,0.0002212,2]
[425306408,1781685043000,-500.0,0.0002212,2]
[425306409,1781685043000,-500.0,0.0002212,2]
[425306407,1781685043000,-1981.95906149,0.00022049,2]
[425306413,1781685043000,-153.10977803,0.0002212,2]
[425306411,1781685043000,-151.0,0.0002212,2]
[425306412,1781685043000,-154.58503183,0.0002212,2]
[425306414,1781685043000,-1030.0,0.0002212,2]
[425306415,1781685043000,-200.0,0.0002212,2]
[425306405,1781685043000,-175.0,0.00022,2]
[425306417,1781685043000,-151.0,0.0002212,2]
[425306418,1781685043000,-194.72792766,0.0002212,2]
[425306422,1781685043000,-1148.61238259,0.0002212,2]
[425306433,1781685043000,-500.0,0.0002212,2]
[425306432,1781685043000,-1328.27659266,0.0002212,2]
[425306431,1781685043000,-578.20924308,0.0002212,2]
[425306424,1781685043000,-1191.11104074,0.0002212,2]
[425306419,1781685043000,-1107.63007,0.0002212,2]
[425306420,1781685043000,-174.61919141,0.0002212,2]
[425306416,1781685043000,-1068.11,0.0002212,2]
[425306421,1781685043000,-151.0,0.0002212,2]
[425306423,1781685043000,-151.0,0.0002212,2]
[425306426,1781685043000,-151.0,0.0002212,2]
[425306485,1781685044000,-500.0,0.0002212,2]
[425306494,1781685044000,-151.0,0.0002212,2]
[425306483,1781685044000,-152.0,0.0002212,2]
[425306489,1781685044000,-1980.8648231,0.0002212,2]
[425306488,1781685044000,-151.0,0.0002212,2]
[425306497,1781685044000,-151.0,0.0002212,2]
[425306495,1781685044000,-152.0,0.0002212,2]
[425306490,1781685044000,-152.0,0.0002212,2]
[425306496,1781685044000,-151.0,0.0002212,2]
[425306491,1781685044000,-500.0,0.0002212,2]
[425306507,1781685044000,-151.0,0.0002212,2]
[425306492,1781685044000,-500.0,0.0002212,2]
[425306499,1781685044000,-500.0,0.0002212,2]
[425306498,1781685044000,-152.0,0.0002212,2]
[425306503,1781685044000,-500.0,0.0002212,2]
[425306500,1781685044000,-151.0,0.0002212,2]
[425306504,1781685044000,-151.0,0.0002212,2]
[425306501,1781685044000,-151.0,0.0002212,2]
[425306505,1781685044000,-151.0,0.0002212,2]
[425306506,1781685044000,-500.0,0.0002212,2]
[425306502,1781685044000,-152.0,0.0002212,2]
[425306482,1781685044000,-151.0,0.0002212,2]
[425306493,1781685044000,-2054.15682147,0.0002212,2]
[425306478,1781685044000,-500.0,0.0002212,2]
[425306467,1781685044000,-151.0,0.0002212,2]
[425306487,1781685044000,-151.0,0.0002212,2]
[425306508,1781685044000,-151.0,0.0002212,2]
[425306460,1781685044000,-500.0,0.0002212,2]
[425306458,1781685044000,-1592.87721992,0.0002212,2]
[425306463,1781685044000,-151.0,0.0002212,2]
[425306465,1781685044000,-500.0,0.0002212,2]
[425306459,1781685044000,-500.0,0.0002212,2]
[425306462,1781685044000,-152.0,0.0002212,2]
[425306464,1781685044000,-1651.81367706,0.0002212,2]
[425306461,1781685044000,-151.0,0.0002212,2]
[425306475,1781685044000,-500.0,0.0002212,2]
[425306466,1781685044000,-500.0,0.0002212,2]
[425306476,1781685044000,-152.0,0.0002212,2]
[425306469,1781685044000,-1712.93078311,0.0002212,2]
[425306472,1781685044000,-500.0,0.0002212,2]
[425306473,1781685044000,-151.0,0.0002212,2]
[425306474,1781685044000,-1776.30922209,0.0002212,2]
[425306468,1781685044000,-152.0,0.0002212,2]
[425306471,1781685044000,-500.0,0.0002212,2]
[425306470,1781685044000,-151.0,0.0002212,2]
[425306477,1781685044000,-151.0,0.0002212,2]
[425306481,1781685044000,-500.0,0.0002212,2]
[425306480,1781685044000,-151.0,0.0002212,2]
[425306486,1781685044000,-500.0,0.0002212,2]
[425306484,1781685044000,-1910.18787185,0.0002212,2]
[425306512,1781685044000,-151.0,0.0002212,2]
[425306479,1781685044000,-1842.0326633,0.0002212,2]
[425306510,1781685044000,-500.0,0.0002212,2]
[425306540,1781685044000,-455.77411936,0.00022407,2]
[425306537,1781685044000,-3584.89594489,0.000224,2]
[425306538,1781685044000,-455.77411938,0.00022407,2]
[425306542,1781685044000,-188.46030709,0.00022407,2]
[425306543,1781685044000,-3529.60598574,0.00022445,2]
[425306544,1781685044000,-153.10977803,0.0002245,2]
[425306546,1781685044000,-157.61838655,0.00022463,7]
[425306545,1781685044000,-151.0,0.0002245,2]
[425306549,1781685044000,-150.0,0.00022463,7]
[425306547,1781685044000,-150.0,0.00022463,7]
[425306551,1781685044000,-1307.0,0.00022477,5]
[425306550,1781685044000,-150.0,0.00022463,7]
[425306552,1781685044000,-732.36,0.00022499,2]
[425306548,1781685044000,-150.0,0.00022463,7]
[425306554,1781685044000,-151.0,0.00022505,2]
[425306553,1781685044000,-153.10977815,0.00022505,2]
[425306556,1781685044000,-1492.91,0.00022564,2]
[425306561,1781685044000,-664.53820211,0.00022668,2]
[425306557,1781685044000,-10053.82899325,0.00022606,2]
[425306555,1781685044000,-151.0,0.0002256,2]
[425306558,1781685044000,-151.0,0.00022615,2]
[425306560,1781685044000,-334.49,0.00022658,2]
[425306509,1781685044000,-152.0,0.0002212,2]
[425306536,1781685044000,-1169.40240476,0.00022399,2]
[425306562,1781685044000,-154.58503183,0.00022668,2]
[425306559,1781685044000,-3191.54004114,0.00022657,2]
[425306541,1781685044000,-236.64048466,0.00022407,2]
[425306511,1781685044000,-151.0,0.0002212,2]
[425306517,1781685044000,-151.0,0.0002212,2]
[425306514,1781685044000,-500.0,0.0002212,2]
[425306516,1781685044000,-500.0,0.0002212,2]
[425306515,1781685044000,-151.0,0.0002212,2]
[425306513,1781685044000,-152.0,0.0002212,2]
[425306518,1781685044000,-153.10977803,0.00022175,2]
[425306539,1781685044000,-455.77411936,0.00022407,2]
[425306524,1781685044000,-153.10977803,0.0002223,2]
[425306522,1781685044000,-231.60762347,0.000222,2]
[425306521,1781685044000,-3584.89594489,0.000222,2]
[425306523,1781685044000,-1873.20991633,0.000222,2]
[425306519,1781685044000,-151.0,0.00022175,2]
[425306526,1781685044000,-562.90970208,0.00022257,7]
[425306520,1781685044000,-190.97470805,0.000222,2]
[425306530,1781685044000,-153.10977803,0.0002234,2]
[425306528,1781685044000,-153.10977803,0.00022285,2]
[425306529,1781685044000,-151.0,0.00022285,2]
[425306527,1781685044000,-993.03943829,0.00022257,7]
[425306532,1781685044000,-254.4,0.00022353,2]
[425306533,1781685044000,-538.0,0.00022384,6]
[425306531,1781685044000,-151.0,0.0002234,2]
[425306534,1781685044000,-153.10977803,0.00022395,2]
[425306525,1781685044000,-151.0,0.0002223,2]
[425306535,1781685044000,-151.0,0.00022395,2]
[425306600,1781685045000,-616.0,0.00023,2]
[425306603,1781685045000,-150.0,0.00023014,2]
[425306599,1781685045000,-502.0,0.00023,2]
[425306605,1781685045000,-345.64121912,0.00023094,2]
[425306585,1781685045000,-1981.95906149,0.00022972,2]
[425306594,1781685045000,-190.0,0.00023,2]
[425306592,1781685045000,-791.0,0.00023,2]
[425306593,1781685045000,-769.0,0.00023,2]
[425306604,1781685045000,-150.0,0.00023087,7]
[425306602,1781685045000,-538.0,0.0002301,6]
[425306611,1781685045000,-151.0,0.00023216,2]
[425306598,1781685045000,-206.0,0.00023,2]
[425306595,1781685045000,-173.0,0.00023,2]
[425306597,1781685045000,-179.277389,0.00023,2]
[425306601,1781685045000,-202.58416,0.00023,2]
[425306607,1781685045000,-154.58503183,0.00023216,2]
[425306609,1781685045000,-200.0,0.00023216,2]
[425306608,1781685045000,-151.0,0.00023216,2]
[425306610,1781685045000,-187.78006524,0.00023216,2]
[425306606,1781685045000,-3584.89594489,0.000231,2]
[425306617,1781685045000,-3368.06,0.00023261,7]
[425306586,1781685045000,-285.0,0.00022997,2]
[425306596,1781685045000,-168.0,0.00023,2]
[425306589,1781685045000,-165.0,0.00023,2]
[425306575,1781685045000,-3584.89594489,0.000227,2]
[425306588,1781685045000,-162.0,0.00023,2]
[425306613,1781685045000,-209.40437684,0.00023216,2]
[425306563,1781685045000,-151.0,0.00022668,2]
[425306567,1781685045000,-201.93286098,0.00022668,2]
[425306564,1781685045000,-200.0,0.00022668,2]
[425306566,1781685045000,-151.0,0.00022668,2]
[425306568,1781685045000,-201.93286098,0.00022668,2]
[425306570,1781685045000,-201.93286098,0.00022668,2]
[425306569,1781685045000,-151.0,0.00022668,2]
[425306565,1781685045000,-181.08010149,0.00022668,2]
[425306571,1781685045000,-2005.9555727,0.00022668,2]
[425306582,1781685045000,-1696.77,0.00022793,2]
[425306576,1781685045000,-151.0,0.00022725,2]
[425306573,1781685045000,-19123.15,0.00022691,2]
[425306572,1781685045000,-151.0,0.0002267,2]
[425306581,1781685045000,-151.0,0.0002278,2]
[425306574,1781685045000,-788.92,0.00022691,2]
[425306577,1781685045000,-1485.52760989,0.00022757,7]
[425306578,1781685045000,-205.63,0.00022762,2]
[425306580,1781685045000,-1883.6629912,0.00022778,2]
[425306579,1781685045000,-150.0,0.00022775,7]
[425306583,1781685045000,-424.65905339,0.00022883,2]
[425306587,1781685045000,-800.74,0.00023,3]
[425306590,1781685045000,-154.0,0.00023,2]
[425306584,1781685045000,-3584.89594489,0.000229,2]
[425306615,1781685045000,-259.45434486,0.00023216,2]
[425306612,1781685045000,-238.77665036,0.00023216,2]
[425306614,1781685045000,-151.0,0.00023216,2]
[425306648,1781685045000,-6717.372048,0.00023547,2]
[425306649,1781685045000,-538.0,0.00023636,7]
[425306651,1781685045000,-399.0,0.00023671,2]
[425306652,1781685045000,-205.63,0.00023672,2]
[425306650,1781685045000,-2135.273,0.00023669,4]
[425306657,1781685045000,-654.86,0.00023749,2]
[425306647,1781685045000,-10053.82899325,0.00023523,2]
[425306658,1781685045000,-10388.80689913,0.0002375,2]
[425306655,1781685045000,-150.0,0.00023711,7]
[425306656,1781685045000,-216.642,0.0002374,4]
[425306654,1781685045000,-150.0,0.00023711,7]
[425306646,1781685045000,-86703.3580995,0.00023518,2]
[425306660,1781685045000,-200.0,0.0002375,2]
[425306663,1781685045000,-200.0,0.00023764,2]
[425306664,1781685045000,-194.72792765,0.00023764,2]
[425306665,1781685045000,-151.0,0.00023764,2]
[425306667,1781685045000,-151.0,0.00023764,2]
[425306662,1781685045000,-151.0,0.00023764,2]
[425306661,1781685045000,-154.58503186,0.00023764,2]
[425306668,1781685045000,-2157.14243826,0.00023764,2]
[425306666,1781685045000,-217.15233878,0.00023764,2]
[425306669,1781685045000,-278.91,0.00023814,2]
[425306670,1781685045000,-172.72973787,0.0002388,2]
[425306616,1781685045000,-2080.17592889,0.00023216,2]
[425306659,1781685045000,-200.0,0.0002375,2]
[425306639,1781685045000,-500.0,0.00023517,2]
[425306653,1781685045000,-150.0,0.00023711,7]
[425306640,1781685045000,-500.0,0.00023517,2]
[425306645,1781685045000,-500.0,0.00023517,2]
[425306619,1781685045000,-3584.89594489,0.000233,2]
[425306630,1781685045000,-500.0,0.00023517,2]
[425306618,1781685045000,-150.0,0.00023295,7]
[425306629,1781685045000,-500.0,0.00023517,2]
[425306620,1781685045000,-500.0,0.00023356,7]
[425306627,1781685045000,-500.0,0.00023513,2]
[425306628,1781685045000,-156106.6044951,0.00023514,2]
[425306623,1781685045000,-150.0,0.00023399,7]
[425306622,1781685045000,-500.0,0.00023356,7]
[425306624,1781685045000,-3529.60598574,0.00023417,2]
[425306625,1781685045000,-1626.0,0.00023428,5]
[425306621,1781685045000,-500.0,0.00023356,7]
[425306635,1781685045000,-510.16745497,0.00023517,2]
[425306632,1781685045000,-239.81929128,0.00023517,2]
[425306642,1781685045000,-500.0,0.00023517,2]
[425306633,1781685045000,-500.0,0.00023517,2]
[425306637,1781685045000,-500.0,0.00023517,2]
[425306644,1781685045000,-500.0,0.00023517,2]
[425306638,1781685045000,-500.0,0.00023517,2]
[425306636,1781685045000,-500.0,0.00023517,2]
[425306634,1781685045000,-508.26176951,0.00023517,2]
[425306631,1781685045000,-500.0,0.00023517,2]
[425306626,1781685045000,-194.35277033,0.00023489,2]
[425306713,1781685046000,-500.0,0.0002411,2]
[425306711,1781685046000,-500.0,0.0002411,2]
[425306703,1781685046000,-250.0,0.00024023,2]
[425306707,1781685046000,-500.0,0.0002411,2]
[425306705,1781685046000,-3191.54004114,0.00024086,2]
[425306696,1781685046000,-3000.0,0.00024,3]
[425306704,1781685046000,-250.0,0.00024023,2]
[425306702,1781685046000,-150.0,0.00024023,7]
[425306701,1781685046000,-500.0,0.00024009,2]
[425306709,1781685046000,-500.0,0.0002411,2]
[425306706,1781685046000,-150.0,0.0002411,2]
[425306712,1781685046000,-500.0,0.0002411,2]
[425306723,1781685046000,-500.0,0.0002411,2]
[425306714,1781685046000,-500.0,0.0002411,2]
[425306716,1781685046000,-500.0,0.0002411,2]
[425306717,1781685046000,-527.46461553,0.0002411,2]
[425306720,1781685046000,-500.0,0.0002411,2]
[425306715,1781685046000,-500.0,0.0002411,2]
[425306721,1781685046000,-500.0,0.0002411,2]
[425306722,1781685046000,-500.0,0.0002411,2]
[425306719,1781685046000,-500.0,0.0002411,2]
[425306724,1781685046000,-500.0,0.0002411,2]
[425306718,1781685046000,-500.0,0.0002411,2]
[425306698,1781685046000,-206.0,0.00024,2]
[425306710,1781685046000,-334.57154334,0.0002411,2]
[425306699,1781685046000,-502.0,0.00024,2]
[425306672,1781685046000,-2400.0,0.000239,8]
[425306697,1781685046000,-179.277389,0.00024,2]
[425306736,1781685046000,-200.0,0.00024227,2]
[425306676,1781685046000,-3558.0,0.00023911,2]
[425306677,1781685046000,-3646.0,0.00023911,2]
[425306673,1781685046000,-1275.0,0.00023911,2]
[425306671,1781685046000,-1981.95906149,0.00023895,2]
[425306679,1781685046000,-200.0,0.00023987,2]
[425306678,1781685046000,-352.6014533,0.00023938,2]
[425306674,1781685046000,-383.0,0.00023911,2]
[425306675,1781685046000,-1364.377,0.00023911,2]
[425306680,1781685046000,-200.0,0.00023987,2]
[425306682,1781685046000,-732.36,0.00023999,2]